bitfinex-derivatives/quotes_ETHF0:USTF0_20241026
["timestamp","ask_amount","ask_price","bid_price","bid_amount"]
[1729941884727,1.2759,2466.2,2465.8,3.2078]
[1729941885031,0.406,2465.6,2465.5,1.31541517]
[1729941897334,3.47321517,2465.8,2465.4,3.2078]
[1729941897536,0.40603,2465.4,2465.3,0.4398]
[1729941897736,0.40603,2465.4,2465.3,1.31541517]
[1729941898037,1.23863,2465.4,2465.3,1.31541517]
[1729941900340,3.2078,2466.0,2465.3,5.37141517]
[1729941900639,0.406,2465.6,2465.5,3.2078]
[1729941901142,2.1458,2465.9,2465.5,7.2638]
[1729941901143,0.40599,2465.7,2465.5,7.2638]
[1729941901344,0.40599,2465.7,2465.5,3.2078]
[1729941902137,0.40599,2465.7,2465.6,1.31541517]
[1729941906038,1.2878,2465.9,2465.6,1.31541517]
[1729941906248,1.69375,2465.9,2465.8,1.31541517]
[1729941915451,0.40597,2465.8,2465.7,1.31541517]
[1729941916053,0.40599,2465.7,2465.6,1.31541517]
[1729941924957,0.40597,2465.8,2465.5,3.2078]
[1729941925153,0.406,2465.6,2465.5,4.52321517]
[1729941925551,0.8406,2465.6,2465.5,4.52321517]
[1729941925754,0.8406,2465.6,2465.5,1.31541517]
[1729941945775,0.8406,2465.6,2465.5,1.72581517]
[1729941949277,0.40597,2465.8,2465.5,9.74343745]
[1729941949571,0.40597,2465.8,2465.7,1.31541517]
[1729941951573,0.4059,2466.2,2465.7,8.57841517]
[1729941951776,0.4059,2466.2,2466.1,1.31541517]
[1729941951977,1.7064,2466.2,2466.1,1.31541517]
[1729941974300,3.2078,2466.5,2466.1,1.31541517]
[1729941974495,3.61365,2466.5,2466.4,1.31541517]
[1729941975795,0.40585,2466.5,2466.4,1.31541517]
[1729941975995,0.81924,2466.6,2466.4,1.31541517]
[1729941976195,0.81924,2466.6,2466.5,1.31541517]
[1729941976407,0.40584,2466.6,2466.5,1.31541517]
[1729941983407,0.40587,2466.4,2466.3,3.2078]
[1729941983610,0.40592,2466.1,2466.0,3.2078]
[1729941983907,0.40592,2466.1,2466.0,4.52321517]
[1729941987911,0.40592,2466.1,2466.0,1.31541517]
[1729941988912,0.85711,2466.2,2466.0,1.31541517]
[1729941989112,0.85711,2466.2,2465.9,3.2078]
[1729941989113,0.85711,2466.2,2466.1,1.31541517]
[1729941992310,0.4512,2466.2,2465.9,3.2078]
[1729941992507,0.40594,2466.0,2465.9,3.2078]
[1729941992708,0.40594,2466.0,2465.9,4.52321517]
[1729941993213,5.37061517,2466.0,2465.6,1.06298563]
[1729941993519,2.96881517,2465.9,2465.7,1.31541517]
[1729941993814,0.84167,2465.8,2465.7,1.31541517]
[1729941994210,4.89687,2465.8,2465.7,1.31541517]
[1729941996906,0.84167,2465.8,2465.7,1.31541517]
[1729941997817,0.406,2465.6,2465.3,3.2078]
[1729941998016,0.406,2465.6,2465.5,1.31541517]
[1729942004018,0.4099,2465.9,2465.5,6.68683034]
[1729942004220,0.81585,2465.9,2465.8,1.31541517]
[1729942006318,0.4099,2465.9,2465.8,1.31541517]
[1729942007222,0.81585,2465.9,2465.8,1.31541517]
[1729942009021,0.40595,2465.9,2465.8,1.31541517]
[1729942009328,0.40593,2466.1,2465.8,1.31541517]
[1729942009522,0.40593,2466.1,2466.0,1.31541517]
[1729942020433,1.31541517,2466.2,2465.8,3.2078]
[1729942020633,0.40595,2465.9,2465.8,3.2078]
[1729942020830,0.4235,2466.0,2465.8,4.52321517]
[1729942021026,0.40595,2465.9,2465.8,3.2078]
[1729942021330,0.82944,2466.0,2465.8,3.2078]
[1729942022430,0.8939,2466.3,2465.9,1.31541517]
[1729942022627,1.72489,2466.3,2466.2,1.31541517]
[1729942026734,5.77929,2466.3,2466.2,1.31541517]
[1729942026932,1.72489,2466.3,2466.2,1.31541517]
[1729942029134,0.4059,2466.2,2466.1,1.31541517]
[1729942039937,0.4059,2466.3,2466.1,5.37061517]
[1729942040136,0.4059,2466.3,2466.2,1.31541517]
[1729942041439,0.8485,2466.3,2466.2,1.31541517]
[1729942042742,0.8435,2466.3,2466.2,1.31541517]
[1729942047642,0.40592,2466.1,2466.0,0.4203]
[1729942047840,0.40592,2466.1,2466.0,1.73571517]
[1729942055761,0.40594,2466.0,2465.9,1.06187034]
[1729942056054,0.85884,2466.0,2465.9,2.37728551]
[1729942056946,0.85784,2466.0,2465.9,2.37728551]
[1729942057255,0.85784,2466.0,2465.9,1.31541517]
[1729942059346,1.76831517,2466.0,2465.8,3.2078]
[1729942059556,1.72136517,2465.9,2465.8,3.2078]
[1729942059756,1.72136517,2465.9,2465.8,4.52321517]
[1729942059949,0.40595,2465.9,2465.8,4.52321517]
[1729942060758,0.40495,2465.9,2465.8,4.52321517]
[1729942062054,5.77556517,2465.9,2465.8,1.31541517]
[1729942062261,0.40597,2465.8,2465.7,1.31541517]
[1729942062552,1.29797,2465.8,2465.7,1.31541517]
[1729942068864,1.29697,2465.8,2465.7,1.31541517]
[1729942070964,1.29597,2465.8,2465.7,1.31541517]
[1729942072361,1.29497,2465.8,2465.7,1.31541517]
[1729942074360,1.29397,2465.8,2465.7,1.31541517]
[1729942076068,1.29297,2465.8,2465.7,1.31541517]
[1729942091173,0.406,2465.6,2465.5,1.31541517]
[1729942100280,0.406,2465.6,2465.5,1.4423799]
[1729942101785,0.406,2465.6,2465.5,1.44237906]
[1729942101976,1.72141517,2465.6,2465.5,0.12696389]
[1729942102177,0.40607,2465.2,2465.1,1.06412141]
[1729942102374,0.40608,2465.1,2465.0,5.99563658]
[1729942102575,0.40608,2465.1,2465.0,7.5793462]
[1729942102776,0.40608,2465.1,2465.0,5.99563658]
[1729942102970,0.40608,2465.1,2465.0,2.78783658]
[1729942103269,0.40608,2465.1,2465.0,1.72371517]
[1729942106777,0.40608,2465.1,2464.8,1.92922141]
[1729942106978,0.40608,2465.1,2465.0,1.31541517]
[1729942108381,0.40611,2465.0,2464.8,1.2854]
[1729942108593,0.40611,2465.0,2464.9,1.31541517]
[1729942109490,0.4061,2465.1,2464.9,1.31541517]
[1729942109788,0.4061,2465.1,2465.0,1.31541517]
[1729942115290,0.828,2465.3,2465.0,1.72151517]
[1729942115482,0.828,2465.3,2465.2,1.31541517]
[1729942115796,0.40604,2465.4,2465.2,1.31541517]
[1729942115982,0.40604,2465.4,2464.9,0.40611]
[1729942115983,0.40604,2465.4,2465.3,1.31541517]
[1729942116189,0.40603,2465.4,2465.3,1.31541517]
[1729942130202,1.72144517,2465.4,2465.3,1.31541517]
[1729942139421,1.31541517,2465.4,2465.2,4.52321517]
[1729942139613,0.40605,2465.3,2465.2,4.52321517]
[1729942139815,0.81525,2465.3,2465.2,4.52321517]
[1729942140624,0.81525,2465.3,2465.2,1.31541517]
[1729942140825,0.81525,2465.3,2465.2,4.52321517]
[1729942143217,0.81525,2465.3,2465.2,4.65018735]
[1729942143420,0.81525,2465.3,2465.2,3.2078]
[1729942143726,0.40607,2465.2,2465.1,1.73261517]
[1729942143921,1.28247,2465.2,2465.1,1.8595938]
[1729942145321,1.28247,2465.2,2465.1,0.12697863]
[1729942145523,2.59788517,2465.2,2465.1,0.12697863]
[1729942145717,2.19181517,2465.2,2464.9,6.03777669]
[1729942145919,0.4061,2465.0,2464.9,6.03777669]
[1729942146227,0.4061,2465.0,2464.9,1.89299469]
[1729942146620,0.8416,2465.0,2464.9,1.89299469]
[1729942146818,0.8416,2465.0,2464.9,0.57757952]
[1729942147019,0.8416,2465.0,2464.9,1.89299469]
[1729942147428,0.8416,2465.0,2464.9,1.44239469]
[1729942148824,0.8416,2465.0,2464.9,0.12697952]
[1729942149018,2.15701517,2465.0,2464.9,0.12697952]
[1729942149418,0.40612,2464.9,2464.8,1.31541517]
[1729942149723,0.40612,2464.9,2464.8,1.44241038]
[1729942150325,0.40612,2464.9,2464.8,1.31541517]
[1729942159039,2.13513517,2464.9,2464.8,1.31541517]
[1729942161836,2.13513517,2464.9,2464.7,1.31541517]
[1729942162039,0.4112,2464.8,2464.7,1.31541517]
[1729942163635,1.72661517,2464.8,2464.7,1.31541517]
[1729942163832,1.72661517,2464.8,2464.6,1.31541517]
[1729942164034,1.72661517,2464.8,2464.5,0.431]
[1729942164035,2.14677517,2464.7,2464.5,0.431]
[1729942164241,2.14677517,2464.7,2464.6,1.31541517]
[1729942164437,0.83136,2464.7,2464.6,1.31541517]
[1729942164642,0.4252,2464.7,2464.6,1.31541517]
[1729942168340,1.74061517,2464.7,2464.6,1.31541517]
[1729942168537,1.74061517,2464.7,2464.5,0.431]
[1729942168739,1.72158517,2464.6,2464.5,0.431]
[1729942168942,2.14278517,2464.6,2464.5,0.431]
[1729942170245,0.40623,2464.3,2464.1,4.27176152]
[1729942170539,0.4305,2464.5,2464.2,1.31541517]
[1729942170745,0.4305,2464.5,2464.4,1.31541517]
[1729942171043,1.73661517,2464.6,2464.4,1.31541517]
[1729942171246,1.65538,2464.6,2464.5,1.31541517]
[1729942173233,2.97079517,2464.6,2464.4,1.31541517]
[1729942173748,2.97079517,2464.6,2464.5,0.4164]
[1729942176753,0.40619,2464.5,2464.3,1.76371517]
[1729942176938,1.72160517,2464.5,2464.3,1.76371517]
[1729942177248,1.72161517,2464.4,2464.2,3.2078]
[1729942177455,0.40622,2464.3,2464.2,4.52321517]
[1729942179956,0.4211,2464.4,2464.2,4.52321517]
[1729942180249,0.4211,2464.4,2464.3,1.31541517]
[1729942180250,0.82731,2464.4,2464.3,1.31541517]
[1729942180456,0.82731,2464.4,2464.3,1.75581517]
[1729942181656,0.4144,2464.5,2464.3,1.75581517]
[1729942181859,0.82059,2464.5,2464.4,1.31541517]
[1729942182057,0.4144,2464.5,2464.4,1.31541517]
[1729942186757,0.8313,2464.6,2464.4,1.31541517]
[1729942187068,0.8313,2464.6,2464.5,1.31541517]
[1729942188561,1.2523,2464.6,2464.5,1.31541517]
[1729942191965,1.65847,2464.6,2464.5,1.31541517]
[1729942192262,1.2523,2464.6,2464.5,1.31541517]
[1729942193463,1.2523,2464.6,2464.4,3.2078]
[1729942193664,1.65848,2464.6,2464.5,1.31541517]
[1729942195261,2.97389517,2464.6,2464.5,1.31541517]
[1729942195560,2.56771517,2464.6,2464.5,1.31541517]
[1729942196363,2.97388517,2464.6,2464.5,1.31541517]
[1729942196960,2.56771517,2464.6,2464.5,1.31541517]
[1729942197360,2.97388517,2464.6,2464.5,1.31541517]
[1729942199668,2.56771517,2464.6,2464.5,1.31541517]
[1729942200165,2.97388517,2464.6,2464.5,1.31541517]
[1729942200861,2.56771517,2464.6,2464.4,3.2078]
[1729942201365,2.56771517,2464.6,2464.4,4.52321517]
[1729942203066,2.97388517,2464.6,2464.4,4.52321517]
[1729942203261,2.56771517,2464.6,2464.4,4.52321517]
[1729942204767,2.97388517,2464.6,2464.4,4.52321517]
[1729942207364,2.97388517,2464.6,2464.5,0.12700924]
[1729942207563,2.56771517,2464.6,2464.5,0.12700924]
[1729942207767,2.97388517,2464.6,2464.5,0.12700924]
[1729942208066,2.97388517,2464.6,2464.4,4.52321517]
[1729942208067,2.56771517,2464.6,2464.4,4.52321517]
[1729942208367,0.40618,2464.5,2464.4,4.52321517]
[1729942208566,2.97388517,2464.6,2464.4,4.65022532]
[1729942208763,2.97388517,2464.6,2464.5,0.12701016]
[1729942209867,1.72158517,2464.6,2464.5,0.12701016]
[1729942210068,3.02278517,2464.6,2464.5,0.12701016]
[1729942210773,2.61661517,2464.6,2464.5,0.12701016]
[1729942211165,3.02278517,2464.6,2464.5,0.12701016]
[1729942212367,3.02278517,2464.6,2464.4,4.52321517]
[1729942212670,3.02278517,2464.6,2464.5,0.1270099]
[1729942214070,2.61661517,2464.6,2464.5,0.1270099]
[1729942214672,3.02278517,2464.6,2464.5,0.1270099]
[1729942216271,3.02278517,2464.6,2464.5,0.12701044]
[1729942220070,3.02278517,2464.6,2464.5,0.12701433]
[1729942222977,2.61661517,2464.6,2464.5,0.12701433]
[1729942224373,3.02278517,2464.6,2464.5,0.12701433]
[1729942225174,2.61661517,2464.6,2464.5,0.12701433]
[1729942226471,3.02278517,2464.6,2464.5,0.12701433]
[1729942228980,2.61661517,2464.6,2464.5,0.12701433]
[1729942229482,0.40609,2465.1,2464.7,0.40615]
[1729942229678,2.62191517,2465.2,2465.0,1.31541517]
[1729942229980,2.62191517,2465.2,2464.8,4.80739697]
[1729942229981,3.02798517,2465.2,2465.1,1.31541517]
[1729942230174,3.2078,2465.4,2465.1,1.72149517]
[1729942230374,1.31541517,2465.5,2465.3,1.31541517]
[1729942230888,3.2078,2466.1,2465.4,5.37141517]
[1729942231179,1.31541517,2465.7,2465.6,1.31541517]
[1729942231573,1.26417,2465.8,2465.6,1.31541517]
[1729942231774,1.31541517,2465.7,2465.6,1.31541517]
[1729942232577,1.72140517,2465.7,2465.6,1.31541517]
[1729942232778,1.31541517,2465.7,2465.6,1.31541517]
[1729942233782,1.70807,2465.8,2465.6,1.31541517]
[1729942233982,2.61751517,2465.8,2465.6,1.31541517]
[1729942234289,3.02348517,2465.8,2465.6,1.31541517]
[1729942235378,0.40594,2466.0,2465.7,4.52321517]
[1729942235579,1.27034,2466.0,2465.9,1.31541517]
[1729942237487,0.40596,2465.9,2465.8,1.31541517]
[1729942237687,1.72137517,2465.9,2465.8,1.31541517]
[1729942238282,1.31541517,2465.9,2465.8,1.31541517]
[1729942239080,2.58575517,2466.0,2465.8,1.31541517]
[1729942242289,0.40595,2465.9,2465.8,1.31541517]
[1729942242590,2.58575517,2466.0,2465.8,1.31541517]
[1729942243388,0.40595,2465.9,2465.8,1.31541517]
[1729942243695,2.58575517,2466.0,2465.8,1.31541517]
[1729942244094,3.2078,2466.3,2465.9,1.31541517]
[1729942244293,11.96334,2467.3,2466.2,1.31541517]
[1729942244294,1.23286,2466.5,2466.2,1.31541517]
[1729942244491,0.40586,2466.5,2466.4,1.31541517]
[1729942245782,1.2774,2466.6,2466.4,1.31541517]
[1729942245989,1.68325,2466.6,2466.5,1.31541517]
[1729942246183,2.14241517,2466.9,2466.5,1.31541517]
[1729942246390,0.40581,2466.8,2466.7,1.31541517]
[1729942246598,2.54821517,2466.9,2466.7,1.31541517]
[1729942247686,0.4058,2466.8,2466.7,1.31541517]
[1729942247890,2.54821517,2466.9,2466.7,1.31541517]
[1729942248099,1.31541517,2466.8,2466.7,1.31541517]
[1729942248300,1.72121517,2466.8,2466.7,1.31541517]
[1729942248694,1.31541517,2466.8,2466.3,3.2078]
[1729942248999,1.72125517,2466.6,2466.4,1.31541517]
[1729942249190,0.8376,2466.5,2466.4,1.31541517]
[1729942249604,0.8376,2466.5,2466.4,5.36981517]
[1729942259609,0.8376,2466.5,2466.4,1.31541517]
[1729942259807,0.8376,2466.5,2466.4,5.36981517]
[1729942260513,0.8376,2466.5,2466.4,1.31541517]
[1729942261101,0.8376,2466.5,2466.2,3.2078]
[1729942261305,1.31541517,2466.4,2466.2,3.2078]
[1729942261506,1.31541517,2466.4,2466.3,1.31541517]
[1729942261507,1.72128517,2466.4,2466.3,1.31541517]
[1729942262711,0.40589,2466.3,2466.2,4.52321517]
[1729942262905,1.72130517,2466.3,2466.2,4.52321517]
[1729942263107,0.40589,2466.3,2466.2,4.52321517]
[1729942263607,1.72130517,2466.3,2466.2,4.52321517]
[1729942263800,1.72130517,2466.3,2466.2,1.31541517]
[1729942264412,1.31541517,2466.3,2465.9,1.31541517]
[1729942264718,0.40594,2466.0,2465.7,3.2078]
[1729942264911,0.40594,2466.0,2465.9,1.31541517]
[1729942270810,0.4103,2466.2,2465.9,1.31541517]
[1729942271017,0.81621,2466.2,2466.1,1.31541517]
[1729942271215,0.4103,2466.2,2466.1,1.31541517]
[1729942274116,0.8162,2466.2,2466.1,1.31541517]
[1729942274321,0.4103,2466.2,2466.1,1.31541517]
[1729942275423,0.8615,2466.2,2466.1,1.31541517]
[1729942276922,0.4103,2466.2,2466.1,1.31541517]
[1729942277327,0.827,2466.6,2466.1,4.92912517]
[1729942277528,0.84544,2466.6,2466.5,1.31541517]
[1729942278326,3.2078,2466.7,2466.5,1.31541517]
[1729942278530,3.61363,2466.7,2466.6,1.31541517]
[1729942279433,3.2078,2466.7,2466.6,1.31541517]
[1729942280631,3.61362,2466.7,2466.6,1.31541517]
[1729942281232,3.2078,2466.7,2466.6,1.31541517]
[1729942281431,3.61362,2466.7,2466.6,1.31541517]
[1729942281830,0.40582,2466.7,2466.6,1.31541517]
[1729942282027,4.02711,2466.8,2466.6,1.31541517]
[1729942282234,4.02711,2466.8,2466.7,1.31541517]
[1729942283439,0.81931,2466.8,2466.7,1.31541517]
[1729942285241,0.4135,2466.8,2466.7,1.31541517]
[1729942286642,0.8193,2466.8,2466.7,1.31541517]
[1729942300258,0.4135,2466.8,2466.7,1.31541517]
[1729942303162,0.8193,2466.8,2466.7,1.31541517]
[1729942307567,1.29259,2467.0,2466.7,1.31541517]
[1729942307765,1.72229,2467.0,2466.9,1.31541517]
[1729942320091,0.40579,2466.9,2466.8,1.31541517]
[1729942320282,1.31541517,2466.9,2466.7,1.31541517]
[1729942320482,0.40583,2466.7,2466.6,1.31541517]
[1729942320984,0.81713,2466.7,2466.6,1.31541517]
[1729942321594,0.4113,2466.7,2466.5,3.2078]
[1729942321787,1.29244,2466.6,2466.5,3.2078]
[1729942322092,1.29244,2466.6,2466.5,4.52321517]
[1729942323897,0.8866,2466.6,2466.5,4.52321517]
[1729942324797,0.8866,2466.6,2466.5,1.31541517]
[1729942331798,0.4403,2466.6,2466.5,1.31541517]
[1729942349208,3.2078,2466.9,2466.5,1.31541517]
[1729942349209,4.0338,2466.9,2466.5,5.36981517]
[1729942349411,0.826,2467.0,2466.8,1.31541517]
[1729942349713,1.23177,2467.1,2466.9,1.31541517]
[1729942350009,1.23177,2467.1,2467.0,1.31541517]
[1729942354012,4.515,2467.3,2467.0,2.63083034]
[1729942354211,4.92073,2467.3,2467.2,1.31541517]
[1729942354608,4.515,2467.3,2467.2,1.31541517]
[1729942356913,3.2078,2467.3,2467.2,1.31541517]
[1729942358614,0.40572,2467.4,2467.2,1.31541517]
[1729942358807,1.6818,2467.5,2467.3,1.31541517]
[1729942359010,1.6818,2467.5,2467.4,1.31541517]
[1729942359219,4.8896,2467.5,2467.4,1.31541517]
[1729942359421,4.4839,2467.5,2467.4,1.31541517]
[1729942363314,1.2761,2467.5,2467.4,1.31541517]
[1729942364815,0.835,2467.5,2467.4,1.31541517]
[1729942366320,0.4122,2467.7,2467.4,1.72111517]
[1729942366518,0.4122,2467.7,2467.6,1.31541517]
[1729942368011,0.4122,2467.7,2467.6,5.36821517]
[1729942368319,0.4122,2467.7,2467.6,1.31541517]
[1729942377927,0.81786,2467.7,2467.4,3.2078]
[1729942378132,0.81786,2467.7,2467.6,1.31541517]
[1729942379925,0.4122,2467.7,2467.6,1.31541517]
[1729942386934,8.98821517,2467.7,2467.1,3.2078]
[1729942387137,3.62,2467.7,2467.6,1.31541517]
[1729942387326,0.40573,2467.3,2467.1,3.2078]
[1729942387524,3.2078,2467.7,2467.2,1.31541517]
[1729942387729,3.61346,2467.7,2467.6,1.31541517]
[1729942387930,7.2606,2467.7,2467.1,3.2078]
[1729942388135,0.4057,2467.5,2467.1,3.2078]
[1729942388341,0.40572,2467.4,2467.1,3.2078]
[1729942389131,0.40572,2467.4,2467.1,3.6538]
[1729942390036,3.2078,2467.7,2467.3,1.31541517]
[1729942390340,3.61346,2467.7,2467.6,1.31541517]
[1729942390537,4.05856,2467.7,2467.6,1.31541517]
[1729942390740,8.11136,2467.7,2467.6,1.31541517]
[1729942391635,8.55336,2467.7,2467.6,1.31541517]
[1729942391837,5.34556,2467.7,2467.6,1.31541517]
[1729942392135,8.55336,2467.7,2467.6,1.31541517]
[1729942393134,5.34556,2467.7,2467.6,1.31541517]
[1729942393436,8.55336,2467.7,2467.6,1.31541517]
[1729942394339,5.34556,2467.7,2467.6,1.31541517]
[1729942394639,8.55336,2467.7,2467.6,1.31541517]
[1729942395048,5.34556,2467.7,2467.6,1.31541517]
[1729942395536,8.55336,2467.7,2467.6,1.31541517]
[1729942396743,5.34556,2467.7,2467.6,1.31541517]
[1729942396942,8.55336,2467.7,2467.6,1.31541517]
[1729942397843,5.34556,2467.7,2467.6,1.31541517]
[1729942399342,8.55336,2467.7,2467.6,1.31541517]
[1729942400051,5.34556,2467.7,2467.6,1.31541517]
[1729942400739,8.55336,2467.7,2467.6,1.31541517]
[1729942402643,5.34556,2467.7,2467.6,1.31541517]
[1729942402946,8.55336,2467.7,2467.6,1.31541517]
[1729942403148,8.97126,2467.7,2467.6,1.31541517]
[1729942405147,5.76346,2467.7,2467.6,1.31541517]
[1729942405648,8.97126,2467.7,2467.6,1.31541517]
[1729942406041,5.76346,2467.7,2467.6,1.31541517]
[1729942406242,8.97126,2467.7,2467.6,1.31541517]
[1729942406746,8.97126,2467.7,2467.6,1.64527939]
[1729942407747,8.97126,2467.7,2467.6,1.44228602]
[1729942408445,5.76346,2467.7,2467.6,1.44228602]
[1729942408952,8.97126,2467.7,2467.6,1.44228602]
[1729942409850,5.76346,2467.7,2467.6,1.31541517]
[1729942410459,8.97126,2467.7,2467.6,1.31541517]
[1729942411158,5.76346,2467.7,2467.6,1.31541517]
[1729942411451,8.97126,2467.7,2467.6,1.31541517]
[1729942412347,0.40567,2467.6,2467.5,1.31541517]
[1729942412549,0.40567,2467.6,2467.5,1.44228585]
[1729942412758,0.40567,2467.6,2467.5,1.64527889]
[1729942413456,3.61347,2467.6,2467.5,1.64527889]
[1729942413860,3.61347,2467.6,2467.5,1.31541517]
[1729942414161,0.40567,2467.6,2467.5,1.64528068]
[1729942414353,3.61347,2467.6,2467.5,1.64528068]
[1729942416558,0.40567,2467.6,2467.5,1.64528068]
[1729942417366,3.61347,2467.6,2467.5,1.64528068]
[1729942417657,0.40567,2467.6,2467.5,1.6452786]
[1729942418549,3.61347,2467.6,2467.5,1.6452786]
[1729942419775,4.43947,2467.6,2467.5,1.31541517]
[1729942421368,4.43947,2467.6,2467.5,1.44228256]
[1729942421674,4.43947,2467.6,2467.5,1.31541517]
[1729942422269,4.43947,2467.6,2467.5,1.44228309]
[1729942422774,1.23167,2467.6,2467.5,1.31541517]
[1729942423169,4.43947,2467.6,2467.5,1.44228299]
[1729942423875,1.23167,2467.6,2467.5,1.31541517]
[1729942424072,4.43947,2467.6,2467.5,1.31541517]
[1729942424664,1.23167,2467.6,2467.5,1.31541517]
[1729942424868,4.43947,2467.6,2467.5,1.31541517]
[1729942425275,1.23167,2467.6,2467.5,1.31541517]
[1729942425676,4.43947,2467.6,2467.5,1.31541517]
[1729942427681,1.23167,2467.6,2467.5,1.31541517]
[1729942427979,1.23167,2467.6,2467.5,1.64527187]
[1729942428179,4.43947,2467.6,2467.5,1.64527187]
[1729942428385,4.43947,2467.6,2467.5,1.31541517]
[1729942428577,1.23167,2467.6,2467.5,1.645272]
[1729942428884,4.43947,2467.6,2467.5,1.645272]
[1729942429182,1.23167,2467.6,2467.5,1.645272]
[1729942429367,1.23167,2467.6,2467.5,0.12686801]
[1729942429368,5.75488517,2467.6,2467.5,0.12686801]
[1729942430174,9.80768517,2467.6,2467.5,0.12686801]
[1729942430378,0.40569,2467.5,2467.4,0.4401]
[1729942430682,5.77390517,2467.5,2467.4,0.4401]
[1729942431279,5.36821517,2467.5,2467.3,1.31541517]
[1729942431477,0.40572,2467.3,2467.2,1.75551517]
[1729942431681,3.61352,2467.3,2467.2,1.95853285]
[1729942431881,3.61352,2467.3,2467.2,1.75551517]
[1729942432179,3.61352,2467.3,2467.2,1.95853286]
[1729942432972,3.61352,2467.3,2467.2,1.75551517]
[1729942437687,0.40572,2467.3,2467.2,1.75551517]
[1729942437879,3.61352,2467.3,2467.2,1.75551517]
[1729942438884,0.40572,2467.3,2467.2,1.75551517]
[1729942439483,3.61352,2467.3,2467.2,1.75551517]
[1729942439886,0.40572,2467.3,2467.2,1.75551517]
[1729942440183,3.2078,2467.3,2467.2,1.75551517]
[1729942440582,0.40572,2467.4,2467.2,1.95851895]
[1729942440792,0.40572,2467.4,2467.3,1.31541517]
[1729942441085,0.4057,2467.5,2467.3,1.31541517]
[1729942441276,0.4057,2467.5,2467.4,1.76231517]
[1729942441681,4.4585,2467.5,2467.4,1.76231517]
[1729942442184,0.4057,2467.5,2467.4,1.76231517]
[1729942442584,4.4585,2467.5,2467.4,1.76231517]
[1729942443290,0.4057,2467.5,2467.4,1.76231517]
[1729942443483,4.50298,2467.6,2467.4,1.76231517]
[1729942443681,3.2078,2467.6,2467.5,1.72701517]
[1729942443986,3.2078,2467.6,2467.5,2.54910517]
[1729942444186,3.2078,2467.6,2467.5,6.19621517]
[1729942444379,3.2078,2467.6,2467.5,6.60190517]
[1729942444586,3.2078,2467.6,2467.5,6.19621517]
[1729942445588,3.2078,2467.6,2467.5,2.14341517]
[1729942447582,4.183,2468.4,2467.5,6.60190517]
[1729942447778,3.2078,2467.8,2467.5,1.23369]
[1729942448187,3.2078,2467.8,2467.5,5.28649]
[1729942448591,3.2078,2467.8,2467.5,4.8808]
[1729942448793,3.2078,2467.8,2467.6,0.40566]
[1729942448990,3.2078,2467.8,2467.6,0.53251248]
[1729942449189,3.2078,2467.8,2467.7,1.31541517]
[1729942449390,0.40561,2468.0,2467.7,1.31541517]
[1729942449594,4.4384,2468.1,2467.9,1.31541517]
[1729942449787,3.6134,2468.1,2468.0,1.72821517]
[1729942450591,0.8587,2468.5,2468.0,5.78021517]
[1729942450592,4.0665,2468.5,2468.0,5.78021517]
[1729942450791,4.0665,2468.5,2468.4,1.31541517]
[1729942450792,4.86183,2468.5,2468.4,1.31541517]
[1729942451285,4.03683,2468.5,2468.4,1.31541517]
[1729942451591,4.86183,2468.5,2468.4,1.31541517]
[1729942453795,4.43832,2468.5,2468.4,1.31541517]
[1729942454388,4.0328,2468.5,2468.4,1.31541517]
[1729942454788,4.43832,2468.5,2468.4,1.31541517]
[1729942455494,3.2078,2468.5,2468.4,1.31541517]
[1729942455699,3.2078,2468.5,2468.4,1.75671517]
[1729942458200,0.81811,2468.6,2468.4,1.75671517]
[1729942458499,0.81811,2468.6,2468.5,1.31541517]
[1729942461600,0.4126,2468.6,2468.5,1.31541517]
[1729942464405,0.81811,2468.6,2468.5,1.31541517]
[1729942464607,0.4126,2468.6,2468.5,1.31541517]
[1729942465105,0.4126,2468.6,2468.5,2.63083034]
[1729942465309,0.40547,2468.9,2468.5,7.08755034]
[1729942465509,0.4342,2468.9,2468.8,1.31541517]
[1729942465911,3.2078,2469.0,2468.8,1.31541517]
[1729942466104,3.2078,2469.0,2468.9,1.31541517]
[1729942466802,1.2371,2469.2,2468.9,5.36581517]
[1729942466803,0.81752,2469.2,2468.9,5.36581517]
[1729942467006,0.81752,2469.2,2469.1,1.31541517]
[1729942467308,0.81751,2469.2,2469.1,1.31541517]
[1729942468413,0.4121,2469.2,2469.1,1.31541517]
[1729942468914,0.81751,2469.2,2469.1,1.31541517]
[1729942470108,0.81751,2469.2,2469.0,1.31541517]
[1729942470109,5.77711517,2469.2,2469.0,1.31541517]
[1729942470315,4.92864517,2469.1,2469.0,1.31541517]
[1729942470705,8.97904517,2469.1,2469.0,1.31541517]
[1729942470909,9.80404517,2469.1,2469.0,1.31541517]
[1729942473108,5.75364517,2469.1,2469.0,1.31541517]
[1729942473309,9.80404517,2469.1,2469.0,1.31541517]
[1729942474320,4.43823,2469.1,2469.0,1.31541517]
[1729942478217,5.75364517,2469.1,2469.0,1.31541517]
[1729942479114,4.43823,2469.1,2469.0,1.31541517]
[1729942480912,3.2078,2469.1,2469.0,1.31541517]
[1729942481126,0.40543,2469.1,2469.0,1.31541517]
[1729942481617,0.825,2469.3,2469.0,1.31541517]
[1729942481824,0.40542,2469.2,2469.1,0.8496]
[1729942482824,0.825,2469.3,2469.1,0.8496]
[1729942483024,1.2304,2469.3,2469.2,1.31541517]
[1729942490725,2.54580517,2469.3,2469.2,1.31541517]
[1729942492325,0.40541,2469.2,2469.1,0.8496]
[1729942492629,0.40544,2469.1,2468.8,3.2078]
[1729942492827,0.83464,2469.1,2469.0,1.31541517]
[1729942494426,0.4292,2469.1,2469.0,1.31541517]
[1729942497032,0.83463,2469.1,2469.0,1.31541517]
[1729942505635,0.4292,2469.1,2469.0,1.31541517]
[1729942505845,0.83463,2469.1,2469.0,1.31541517]
[1729942512445,0.40548,2468.8,2468.7,0.8707]
[1729942512641,1.26845,2469.0,2468.7,2.18611517]
[1729942512848,0.40545,2469.0,2468.9,1.31541517]
[1729942514953,3.2078,2469.6,2468.9,5.36581517]
[1729942515249,0.40536,2469.6,2469.5,1.31541517]
[1729942515444,0.40536,2469.5,2469.4,1.31541517]
[1729942521348,1.3185,2469.8,2469.4,1.31541517]
[1729942521554,1.29181,2469.8,2469.7,1.31541517]
[1729942524354,2.60722517,2469.8,2469.7,1.31541517]
[1729942527160,1.29181,2469.8,2469.7,1.31541517]